Cogmind - Beta 16.1 @@@ ROGUE MODE // 2026.03.14 @ 22:21:24 Player: backburnr Result: Destroyed self with Mini Grenade Launcher Performance ------------- Evolutions (0) 0 Regions Visited (2) 400 Robots Destroyed (14) 70 Value Destroyed (297) 297 Prototype IDs (0) 0 Alien Tech Used (0) 0 Bonus (0) 0 TOTAL SCORE: 767 Bonus ------- None Cogmind --------- Core Integrity 0/250 Matter 266/300 Energy 84/100 System Corruption 6% Temperature Cool (0) Movement Walking (120) Location -10/Mines Parts ------- > --- POWER (1) -------- (None) > --- PROPULSION (2) --- Improved Aluminum Leg Improved Aluminum Leg > --- UTILITY (2) ------ Small Storage Unit Visual Processing Unit > --- WEAPON (2) ------- Light Assault Rifle Mini Grenade Launcher > --- INVENTORY (8) ---- Light Ion Engine Light Treads Light Treads Improved Aluminum Leg Medium Laser Light Assault Rifle Peak State ------------ > --- POWER ------------ Ion Engine > --- PROPULSION ------- Light Treads Improved Aluminum Leg > --- UTILITY ---------- Small Storage Unit Seismic Detector > --- WEAPON ----------- Light Assault Rifle Mini Grenade Launcher > --- INVENTORY -------- Light Ion Engine Light Treads Improved Aluminum Leg Improved Aluminum Leg Medium Laser Light Assault Rifle Mini Grenade Launcher [Rating: 10] Favorites ----------- Power Ion Engine Engine Ion Engine Propulsion Light Treads Treads Light Treads Leg Improved Aluminum Leg Utility Small Storage Unit Device Seismic Detector Storage Small Storage Unit Processor Visual Processing Unit Weapon Light Assault Rifle Energy Gun Medium Laser Ballistic Gun Light Assault Rifle Launcher Mini Grenade Launcher Build | -11 -10 -10 ------- Run | Yrd Mat Min Slots Evolved . | . . . Power . | . . . Propulsion . | . . . Utility . | . . . Weapon . | . . . Parts Attached 14 | 8 5 1 Power 1 | 1 . . Engine 1 | 1 . . Core . | . . . Reactor . | . . . Propulsion 4 | 2 2 . Treads 2 | 2 . . Leg 2 | . 2 . Wheel . | . . . Hover . | . . . Flight . | . . . Utility 3 | 2 1 . Device 1 | 1 . . Storage 1 | 1 . . Processor 1 | . 1 . Hackware . | . . . Protection . | . . . Artifact . | . . . Weapon 6 | 3 2 1 Energy Gun 1 | 1 . . Energy Cannon . | . . . Ballistic Gun 2 | 2 . . Ballistic Cannon . | . . . Launcher 3 | . 2 1 Special Weapon . | . . . Impact Weapon . | . . . Slashing Weapon . | . . . Piercing Weapon . | . . . Special Melee Weapon . | . . . Unidentified Prototypes . | . . . Parts Lost 3 | . 3 . Power 1 | . 1 . Propulsion . | . . . Utility 1 | . 1 . Weapon 1 | . 1 . Highest Loss Streak 2 | . 2 . To Critical Strikes . | . . . Average Backups 3 | 2 3 7 Power . | . 1 1 Propulsion 1 | . . 3 Utility . | . . . Weapon 1 | 1 2 3 Tool/Special . | . . . Unused Backups 2 | . . 2 Power 1 | . . 1 Propulsion 1 | . . 1 Utility . | . . . Weapon . | . . . Tool/Special . | . . . Average Slot Usage (%) 91 | . 94 84 Engine 9 | . 13 . Treads 16 | . 23 . Leg 11 | . 4 28 Device 9 | . 13 . Storage 14 | . 14 14 Processor 4 | . . 14 Energy Gun 2 | . 2 . Ballistic Gun 14 | . 14 14 Launcher 8 | . 7 13 Peak Build Rating 10 | 7 10 10 Average Rating 7 | 5 7 9 On Entrance 5 | . 7 10 Avg Prop Armor Cover (%) . | . . . Naked Turns . | . . . Heaviest Build 15 | 14 15 7 Greatest Support 40 | 40 40 26 Greatest Overweight (x) 1 | 1 . . Average Overweight (x) . | . . . Largest Inventory Capacity 8 | 8 8 8 Average Capacity 7 | 7 8 8 Most Carried 8 | 6 8 7 Average Carried 3 | 2 3 6 Final Capacity 8 | 8 8 8 Final Carried 7 | 2 7 6 Class Distribution -------------------- 100% | Mutant Dominant Class ---------------- Mutant | -10/Materials Mutant | -10/Mines Resources | -11 -10 -10 ----------- Run | Yrd Mat Min Matter Collected 462 | 292 133 37 Remotely . | . . . Salvage Created 308 | 117 182 9 Parts 27 | 8 19 . Haulers Intercepted . | . . . Recyclers Shooed . | . . . Parts Field Recycled . | . . . Retrieved Matter . | . . . Parts Self-Destructed . | . . . Prevented . | . . . Parts Restored . | . . . Kills | -11 -10 -10 ------- Run | Yrd Mat Min Combat Hostiles Destroyed 9 | . 7 2 Guns 4 | . 4 . AOE 5 | . 3 2 Classes Destroyed 8 | 2 5 1 Worker 1 | . 1 . Tunneler 1 | 1 . . Recycler 1 | 1 . . Operator 1 | . 1 . Watcher 3 | . 3 . Swarmer 3 | . 3 . Grunt 4 | . 4 . Assembled 2 | . . 2 Best Kill Streak 5 | 1 5 2 Combat Bots Only 3 | . 3 2 Max Kills in Single Turn 2 | 1 2 2 Gunslinging . | . . . Exploded 2 | . 1 2 Melee . | . . . Uniques/NPCs Destroyed . | . . . Combat | -11 -10 -10 -------- Run | Yrd Mat Min Hostile Shots Fired 47 | . 39 8 Missed 17 | . 16 1 Hits 30 | . 23 7 Projectile 30 | . 23 7 Damage Taken 797 | . 673 124 Core 262 | . 217 45 Absorbed by Shields . | . . . Core Remaining (%) 100 | 100 . . Volleys Fired 41 | 12 25 4 Largest 2 | 2 2 2 Hottest 70 | 70 50 50 Shots Fired 66 | 24 36 6 Gun 53 | 24 25 4 Cannon . | . . . Launcher 13 | . 11 2 Special . | . . . Kinetic 41 | 12 25 4 Thermal 12 | 12 . . Explosive 13 | . 11 2 Electromagnetic . | . . . Robot Hit Streak 15 | 3 14 15 Robot Miss Streak 3 | 1 2 3 Penetration Max . | . . . Secondary Targets . | . . . Shots Hit Robots 34 | 14 18 2 Core Hits 34 | 4 24 6 Critical Kills 1 | . 1 . Critical Parts Destroyed . | . . . Critical Strikes 1 | . 1 . Destroy 1 | . 1 . Melee Attacks . | . . . Impact . | . . . Slashing . | . . . Piercing . | . . . Sneak Attacks . | . . . Combat Hostiles . | . . . Follow-up Attacks . | . . . Damage Inflicted 975 | 141 673 161 Guns 283 | 141 129 13 Cannons . | . . . Explosions 692 | . 544 148 Melee . | . . . Ramming . | . . . Kinetic 219 | 77 129 13 Thermal 64 | 64 . . Explosive 692 | . 544 148 Electromagnetic . | . . . Impact . | . . . Slashing . | . . . Piercing . | . . . Highest Corruption 6 | . 6 6 Average Corruption 6 | . 6 6 Corruption Purged . | . . . Corruption Blocked . | . . . Effects 4 | . 1 3 Energy Discharges 1 | . 1 . Parts Rejected 1 | . . 1 Data Loss (minor) 1 | . . 1 Data Loss (major) 1 | . . 1 Overload Shots . | . . . Overflow Damage 26 | . 23 3 Projectiles . | . . . Explosions 26 | . 23 3 Melee . | . . . Knockbacks . | . . . Impact . | . . . Kinetic . | . . . Secondary . | . . . Self-Inflicted Damage 94 | . 47 47 Shots 3 | . 2 1 Rammed . | . . . Targets Rammed . | . . . Kicked . | . . . Crushed . | . . . Highest Temperature 110 | 110 25 15 Average Temperature 29 | 46 8 15 Received Heat Transfer 130 | . 90 40 Siege Activations . | . . . Martial Activations . | . . . Shielding Activations . | . . . Robots Disrupted . | . . . Combat Hostiles . | . . . Robots Corrupted . | . . . Combat Hostiles . | . . . Parts Fried . | . . . Impact Corruptions . | . . . Robots Melted . | . . . Combat Hostiles . | . . . Parts Melted . | . . . Heat Transferred 185 | 185 . . Parts Sabotaged . | . . . Parts Stolen . | . . . Parts Stripped . | . . . Power Chain Reactions . | . . . Alert | -11 -10 -10 ------- Run | Yrd Mat Min Maximum Alert Level 1 | . 1 . Low Security (%) 71 | 100 46 100 Level 1 28 | . 53 . Level 2 . | . . . Level 3 . | . . . Level 4 . | . . . Level 5 . | . . . High Security . | . . . Max Security . | . . . Peak Influence 268 | 5 268 84 Initial 84 | . . 84 Average 97 | . 158 56 Influence Increases 388 | 10 366 12 Destroy 0b10 Robot/C 140 | . 140 . Destroy 0b10 Robot/NC 35 | 10 25 . Destroy Leader 46 | . 46 . Successful Hack 14 | . 14 . Disable Machine 60 | . 60 . Destroy Structure 78 | . 66 12 Partial Spotted 15 | . 15 . Influence Decreases 352 | 10 150 192 Entered New Map 132 | . . 132 Time Decay 190 | 10 120 60 Lost Part 30 | . 30 . Squads Dispatched 2 | . 2 . Investigation . | . . . Extermination . | . . . Reinforcement 2 | . 2 . Assault . | . . . Garrison . | . . . Intercept . | . . . Searches Triggered . | . . . Construction Impeded . | . . . Haulers Reinforced . | . . . Active Scanning Responses . | . . . Cargo Convoy Interrupts . | . . . Stealth | -11 -10 -10 --------- Run | Yrd Mat Min Distress Signals 2 | . 2 . Communications Jammed . | . . . Distress Signals . | . . . Times Spotted 33 | . 13 20 Peak Tracking Total 20 | . 4 20 Tactical Retreats . | . . . Traps | -11 -10 -10 ------- Run | Yrd Mat Min Traps Triggered . | . . . Indirectly . | . . . Trap Hack Attempts . | . . . Triggered . | . . . Disarmed . | . . . Reprogrammed 4 | . 4 . Reused . | . . . Traps Extracted . | . . . Installed . | . . . Triggered . | . . . Machines | -11 -10 -10 ---------- Run | Yrd Mat Min Machines Disabled 4 | . 4 . Max in Single Turn 1 | . 1 . Machines Repaired . | . . . Machines Dismantled . | . . . Machines Sabotaged . | . . . Overloaded Fab Kills . | . . . Hacking | -11 -10 -10 --------- Run | Yrd Mat Min Machines Accessed 2 | . 2 . Terminals 2 | . 2 . Fabricators . | . . . Repair Stations . | . . . Recycling Units . | . . . Scanalyzers . | . . . Garrison Access . | . . . Total Hacks 6 | . 6 . Successful 6 | . 6 . Failed . | . . . Catastrophic . | . . . Database Lockouts . | . . . Manual . | . . . Terminals 6 | . 6 . Fabricators . | . . . Repair Stations . | . . . Recycling Units . | . . . Scanalyzers . | . . . Garrison Access . | . . . Terminal Hacks 6 | . 6 . Emergency Access Points 1 | . 1 . Alert Level 1 | . 1 . Reprogram Traps 1 | . 1 . Dispatch Records 1 | . 1 . Reinforcement Status 1 | . 1 . Zone Layout 1 | . 1 . Fabricator Hacks . | . . . Repair Station Hacks . | . . . Recycling Unit Hacks . | . . . Scanalyzer . | . . . Garrison Access Hacks . | . . . Unauthorized Hacks . | . . . Terminals . | . . . Fabricators . | . . . Repair Stations . | . . . Recycling Units . | . . . Scanalyzers . | . . . Garrison Access . | . . . Data Cores Recovered . | . . . Used . | . . . Hacking Detections . | . . . Full Trace Events . | . . . Feedback Events . | . . . Feedback Blocked . | . . . Robot Schematics Acquired . | . . . Robots Built . | . . . Authchips . | . . . Time . | . . . Total Robot Build Rating . | . . . Part Schematics Acquired . | . . . Parts Built . | . . . Authchips . | . . . Time . | . . . Total Part Build Rating . | . . . Part Studies Acquired . | . . . Parts Repaired . | . . . Time . | . . . Parts Recycled . | . . . Recycled Matter . | . . . Retrieved Matter . | . . . Retrieved Components . | . . . Parts Scanalyzed . | . . . Part Schematics Acquired . | . . . Parts Damaged . | . . . Bothacking | -11 -10 -10 ------------ Run | Yrd Mat Min Used RIF Installer . | . . . Robots Hacked . | . . . Non-combat . | . . . Combat . | . . . Robot Hacks Applied . | . . . Relay Couplers Released . | . . . Fabnet Peak Effective % . | . . . Robots Rewired . | . . . Allies Hacked . | . . . Hacks Repelled . | . . . Allies | -11 -10 -10 -------- Run | Yrd Mat Min Total Allies . | . . . Largest Group . | . . . Highest-Rated Group . | . . . Highest-Rated Ally . | . . . Total Orders . | . . . Ally Attacks . | . . . Total Damage . | . . . Kills . | . . . Allies Corrupted . | . . . Allies Melted . | . . . Intel | -11 -10 -10 ------- Run | Yrd Mat Min Active Infowar (turns) 495 | 62 304 129 Optics 132 | . 3 129 Seismic 363 | 62 301 . Robot Analysis Total . | . . . Derelict Logs Recovered . | . . . Drone Launches . | . . . Drone Recoveries . | . . . Exploration | -11 -10 -10 ------------- Run | Yrd Mat Min Turns Passed 592 | 146 317 129 Spaces Moved 310 | 74 165 71 Core 22 | 22 . . Treads 176 | 52 124 . Legs 112 | . 41 71 Wheels . | . . . Hover . | . . . Flight . | . . . Fastest Speed 50 | 50 120 120 Average Speed 138 | 130 150 120 Slowest Speed 160 | 160 160 120 Overloaded Moves . | . . . Propulsion Burnouts . | . . . Robots Hopped . | . . . Potential Cave-ins . | . . . Cave-ins Triggered 1 | . 1 . Exploration Rate (%) 21 | 3 39 23 Regions Visited 2 Branch Regions 1 Pre-discovered Areas . | . . . Known Exits Taken . | . . . Unknown Exits Taken 2 | 1 1 . Scrap Searched . | . . . Spaces Dug . | . . . Terrain Destroyed 75 | . 63 12 Melee . | . . . Projectile . | . . . AOE 75 | . 63 12 Terrain Rammed . | . . . Walls Destroyed . | . . . Machines Disabled . | . . . Actions | -11 -10 -10 --------- Run | Yrd Mat Min Total 415 | 101 202 112 Wait 37 | . 1 36 Move 308 | 73 164 71 Hop . | . . . Pick Up 15 | 8 7 . Fast Attach 1 | 1 . . Attach 9 | 6 2 1 Detach . | . . . Swap 4 | 1 3 . Drop . | . . . Fire 41 | 12 25 4 Melee . | . . . Ram . | . . . Kick . | . . . Crush . | . . . Escape Stasis . | . . . Rewire . | . . . Trap . | . . . Miscellaneous . | . . . Route ------- -11/Scrapyard -10/Materials (discovered 2 exits: [*Min x2]) -10/Mines History --------- Turn | Location | Event 8 | -11/Scrapyard | Discovered new exit (range 14) 147 | -11/Scrapyard | Entered Materials 285 | -10/Materials | Discovered new exit (range 7) 318 | -10/Materials | Build established: Mutant 340 | -10/Materials | Discovered new exit (range 14) 448 | -10/Materials | Crushed by falling debris 448 | -10/Materials | Core integrity fell below 50% 448 | -10/Materials | Core integrity fell below 20% 464 | -10/Materials | Entered Mines 497 | -10/Mines | Joined a pair of Derelicts in attacking an 0b10 outpost 571 | -10/Mines | Assembled infested the area 576 | -10/Mines | Assisted by a Guerilla fighting off Assembled 593 | -10/Mines | Destroyed self with Mini Grenade Launcher Last Messages --------------- 00503_ Machine disabled. 00504_ 1Z-6EZ(g) destroyed. 00510_ System corrupted: Component data lost. 00510_ Y-45 Defender destroyed. 00527_ R-06 Scavenger collects Imp. Ion Engine. 00529_ R-06 Scavenger collects Lgt. Treads. 00532_ R-06 Scavenger collects Hvy. Assault Rifle. 00533_ R-06 Scavenger collects Lgt. Armor Plating. 00535_ R-06 Scavenger collects Lgt. Angular Momentum Engine. 00537_ R-06 Scavenger collects Heat Sink. 00538_ R-06 Scavenger collects Beam Rifle. 00540_ R-06 Scavenger collects Imp. Ion Engine. 00540_ Acquired 37 matter. 00569_ K-01 Serf collects debris. 00571_ ALERT: Infestation in the mines, dispatching Demolisher response squad. 00581_ as-73190 destroyed. 00581_ as-08525 destroyed. 00581_ Destroyed Asb. F-torch. 00582_ System corrupted: Mni. Grenade Launcher rejected. Map ----- +----------------------------------------------------+ | ????????? #??# #?# #?????# #?? | | ????????????# #??# ### ##???## #?? | | ????????????# #### ## ##??# #??? | | ????????????# #### #???? | | ????????????# ####### ## #???? | | ????????????# ####?????# #???? | | ????????????# #????????# ##???? | | ????????????# #????????## ##????? | | ???????????## ##????????###### #?????? | | ???????###?# ##???####?????## #?????? | | ??????##"%## ##?## ##?????## #?????? | | ??????#"" # ### #??????## #????? | | ??????#/! + ##???????# #???? | | ??????#!![ +% ####????????# #???? | | ??????#""= # ##???????????# #???? | | ??????##!%## ##????????????# #???? | | ???????###?### #?????????????# ##???? | | ?????????????# ##?????????????# ##????? | | ?????????????# ###??????????????# #?????? | | ?????????????# ###??????????????# #?????? | | ?????????????# #??????????????? #?????? | | ?????????????#### #??????????????? ??????? | | ????????????????# ####????????????? ??????? | | ????????????????# ######?? ####????????? | | ????????????????### ## # #???? | | ??????????????????# ]a @ #??? | | ??????????????????### # # % #??? | | ????????????????????# # ### #?? | | ????????????????????# # #??#### ! #? | | ????????????????????# # #????????! #? | | ???????????????????? ?????????? ! ?? | | ???????????????????? ???????????? #?? | | ???????????????????? ??????????????##?? | | ???????????????????? ?????????????????? | | ???????????????????? % ?????????????????? | | ????????????????????# % ?????????????????? | | ????????????????????? ?????????????????? | | ????????????????????? ?????????????????? | | ????????????????????? " ????????????????? | | ????????????????????? ????????????????? | | ????????????????????? ????????????????? | | ????????????????????? #????????????????? | | ????????????????????? #?????????????????? | | ??????????????????????????????????????????? | | ??????????????????????????????????????????? | | ??????????????????????????????????????????? | | ??????????????????????????????????????????? | | ??????????????????????????????????????????? | | ??????????????????????????????????????????? | | ??????????????????????????????????????????? | +----------------------------------------------------+ Best States ------------- Heat Dissipation 25 Energy Generation 10 Energy Capacity 250 Matter Stores 300 Matter Capacity 300 Sight Range 18 Terrain Scan Density 10 Evasion (%) 55 Recoil Reduction 2 Item Schematics ----------------- None Robot Schematics ------------------ None Fabricated ------------ Nothing Repaired ---------- Nothing Studied --------- None Alien Tech Used ----------------- None Achievements -------------- Spot Them First Challenges ------------ None Game ------ Seed HoverDeflectorMapper Manual? 0 Play Time 00:07:08 Cumulative 38.9 hours Start 2026.03.14 @ 22:14:29 End 2026.03.14 @ 22:21:24 Sessions 1 Manual Loads 0 Difficulty Rogue Special Mode None Game No. 164 Rogue 164 Adventurer 0 Explorer 0 Win Type - Total 0 Types 0/0/0/0/0/0/0/0/0/0 Lore% 30 Gallery% 27 Achievement% 19 Wizard Run 0 Options --------- Layout 0 ASCII 0 Keyboard 0 Movement Mouse Keybinds 0 Fullscreen 1 Font 18/SmallcapsGlow Map View 38x25 Zoom Use 98% Tactical HUD 1 Map Filters NONE Filters NONE Steam 1 RUN: 88ea08c2-7d9f-42a3-9697-8c06e80375fd